bitfinex/quotes_ETHUSD_20220120
["timestamp","ask_amount","ask_price","bid_price","bid_amount"]
[1642718632246,0.00335266,3060.9,3060.2,3.2174621]
[1642718632441,0.00335266,3060.9,3060.3,17.69329346]
[1642718632741,0.01219225,3062.3,3060.6,2.0]
[1642718632742,8.424e-05,3060.8,3060.6,2.0]
[1642718632940,8.424e-05,3060.8,3060.7,20.54085346]
[1642718633139,0.03,3062.8,3060.7,20.89496391]
[1642718633140,0.00804217,3062.2,3060.7,20.89496391]
[1642718633439,0.00747374,3062.1,3060.8,0.07256189]
[1642718633641,0.00747374,3062.1,3060.9,18.07429346]
[1642718633840,0.00690532,3062.0,3061.2,17.69329346]
[1642718634040,0.00690532,3062.0,3061.3,0.381]
[1642718634238,0.0063369,3061.9,3061.3,18.07429346]
[1642718634440,0.0063369,3061.9,3061.4,0.1305]
[1642718634746,0.00576847,3061.8,3061.4,0.1305]
[1642718635140,0.00520005,3061.7,3061.4,0.1305]
[1642718635589,0.00463163,3061.6,3061.4,0.1305]
[1642718635790,0.00463163,3061.6,3061.5,21.34329346]
[1642718635992,0.01236318,3063.1,3061.5,21.72429346]
[1642718636190,0.01236318,3063.1,3061.6,3.24937393]
[1642718636392,0.01258955,3063.0,3061.7,0.381]
[1642718636794,0.65239815,3062.9,3061.7,0.381]
[1642718637194,0.65239815,3062.9,3061.8,0.00625266]
[1642718637400,0.65239815,3062.9,3061.8,0.07881455]
[1642718637596,0.7403987,3063.0,3061.8,0.00625266]
[1642718637795,0.7403987,3063.0,3061.9,0.00568423]
[1642718637996,0.7403987,3063.0,3061.8,0.00625266]
[1642718638594,0.7403987,3063.0,3061.7,0.381]
[1642718638595,0.7403987,3063.0,3061.7,0.38073515]
[1642718638798,0.7403987,3063.0,3062.4,2.0]
[1642718639042,0.05609515,3062.3,3061.7,0.38073515]
[1642718639448,0.0022737,3062.2,3061.6,0.01933182]
[1642718639846,0.00170527,3062.1,3061.6,0.01933182]
[1642718640247,0.00113685,3062.0,3061.6,0.01933182]
[1642718640645,0.0022737,3062.2,3061.6,0.01933182]
[1642718641046,0.00170527,3062.1,3061.6,0.01933182]
[1642718641248,0.00170527,3062.1,3061.6,3.21933182]
[1642718641447,0.00113685,3062.0,3061.7,0.12182002]
[1642718641646,0.05609515,3062.3,3061.9,1.65]
[1642718641647,0.007232,3062.3,3061.9,1.65]
[1642718641849,0.007232,3062.3,3062.0,0.06546703]
[1642718642046,0.00113685,3062.2,3062.0,0.06546703]
[1642718642246,0.00113685,3062.2,3061.9,1.65]
[1642718646190,0.00113685,3062.2,3062.0,0.10169746]
[1642718646390,3.10836885,3063.5,3062.1,1.65]
[1642718646638,3.10836885,3063.5,3062.1,0.02292828]
[1642718646833,0.00682108,3063.4,3062.1,0.02292828]
[1642718647239,0.00625265,3063.3,3062.1,0.02292828]
[1642718647741,0.00568423,3063.2,3062.1,0.02292828]
[1642718648142,0.00511581,3063.1,3062.1,0.02292828]
[1642718648541,0.00454738,3063.0,3062.1,0.02292828]
[1642718648942,0.00397896,3062.9,3062.1,0.02292828]
[1642718649342,0.00341054,3062.8,3062.1,0.02292828]
[1642718649744,0.00284211,3062.7,3062.1,0.02292828]
[1642718650143,0.00227369,3062.6,3062.1,0.02292828]
[1642718650598,0.00170527,3062.5,3062.1,0.02292828]
[1642718650996,0.00113684,3062.4,3062.1,0.02292828]
[1642718651398,0.00568423,3063.2,3062.1,0.02292828]
[1642718651796,0.00511581,3063.1,3062.0,0.02400951]
[1642718652197,0.00454738,3063.0,3062.0,0.02400951]
[1642718652600,0.00397896,3062.9,3062.0,0.02400951]
[1642718652999,0.00341054,3062.8,3062.0,0.02400951]
[1642718653400,0.8165,3063.3,3062.0,0.02400951]
[1642718653401,0.00284211,3062.7,3062.0,0.02400951]
[1642718653801,0.00227369,3062.6,3062.0,0.02400951]
[1642718654265,0.00170527,3062.5,3062.0,0.02400951]
[1642718654663,0.00113684,3062.4,3062.0,0.02400951]
[1642718655063,0.00568423,3063.2,3062.0,0.02400951]
[1642718655464,0.00511581,3063.1,3062.0,0.02400951]
[1642718655868,0.00454738,3063.0,3062.0,0.02400951]
[1642718656264,0.00397896,3062.9,3062.0,0.02400951]
[1642718656664,0.00341054,3062.8,3062.2,0.01717535]
[1642718656866,0.00341054,3062.8,3062.2,0.00301744]
[1642718657065,0.00284211,3062.7,3062.2,0.00301744]
[1642718657465,0.00227369,3062.6,3062.2,0.00301744]
[1642718657889,2.48852526,3063.5,3062.3,1.65]
[1642718658290,0.00511581,3063.4,3062.4,0.07328671]
[1642718658496,0.00511581,3063.4,3062.3,2.03213685]
[1642718658692,0.83852526,3063.5,3062.3,2.03213685]
[1642718658693,0.00454738,3063.3,3062.3,2.03213685]
[1642718659094,0.00397896,3063.2,3062.3,2.03213685]
[1642718659295,0.00397896,3063.2,3062.4,0.1305]
[1642718659494,0.81628,3063.8,3062.3,2.03213685]
[1642718659495,0.00341054,3063.1,3062.3,2.03213685]
[1642718659894,0.00284211,3063.0,3062.3,2.03213685]
[1642718660294,0.00227369,3062.9,3062.3,2.03213685]
[1642718660696,0.00170527,3062.8,3062.3,2.03213685]
[1642718660897,0.00170527,3062.8,3062.4,0.1305]
[1642718661199,0.00113684,3062.7,3062.4,0.1305]
[1642718661645,0.81463702,3063.5,3062.4,0.1305]
[1642718662045,0.82032125,3063.5,3062.4,0.1305]
[1642718663756,0.72032125,3063.5,3062.4,0.1305]
[1642718663956,0.00568423,3063.5,3062.4,0.1305]
[1642718665155,0.00568423,3063.5,3062.3,24.18213685]
[1642718667199,0.00568423,3063.5,3062.4,1.07274405]
[1642718667597,0.00568423,3063.5,3062.4,20.02274405]
[1642718668199,0.00568423,3063.5,3062.5,0.07274405]
[1642718668797,0.00568423,3063.5,3062.3,3.58213685]
[1642718669044,0.00568423,3063.5,3062.3,3.71263685]
[1642718669246,1.59145253,3063.3,3062.3,3.71263685]
[1642718669642,0.00397896,3063.2,3062.3,3.71263685]
[1642718669843,0.00397896,3063.2,3062.4,2.81447978]
[1642718670044,0.00341054,3063.1,3062.4,2.81447978]
[1642718670244,0.00341054,3063.1,3062.3,3.71263685]
[1642718670446,0.00284211,3063.0,3062.3,3.71263685]
[1642718671044,0.00227369,3062.9,3062.3,3.71263685]
[1642718671445,1.59145253,3063.2,3062.3,3.71263685]
[1642718671446,0.00170527,3062.8,3062.3,3.71263685]
[1642718671653,0.00170527,3062.8,3062.3,3.58213685]
[1642718671844,0.00113684,3062.7,3062.3,3.58213685]
[1642718672250,1.59486307,3063.1,3062.3,3.58213685]
[1642718672645,1.59429464,3063.0,3062.3,3.58213685]
[1642718673088,0.00227369,3062.9,3062.3,3.58213685]
[1642718673489,0.00170527,3062.8,3062.3,3.58213685]
[1642718673889,0.00113684,3062.7,3062.3,3.58213685]
[1642718674298,0.00170527,3062.8,3062.3,3.58213685]
[1642718674696,0.00113684,3062.7,3062.3,3.58213685]
[1642718675593,0.00113684,3062.7,3062.4,18.95]
[1642718675795,1.59145253,3062.6,3062.4,14.51552677]
[1642718675997,1.59145253,3062.6,3062.3,3.58213685]
[1642718676844,1.59145253,3062.5,3062.3,3.58213685]
[1642718677847,1.59145253,3062.5,3062.3,22.53213685]
[1642718678042,1.54145253,3062.5,3062.3,22.53213685]
[1642718679041,1.54145253,3062.5,3062.4,2.7]
[1642718679448,1.54145253,3062.5,3062.4,1.0]
[1642718680888,1.54145253,3062.5,3062.4,19.95]
[1642718682191,2.21885537,3062.7,3062.4,19.95]
[1642718684041,2.21771853,3062.6,3062.4,1.0]
[1642718684442,2.21771853,3062.6,3062.4,1.3]
[1642718685643,2.21771853,3062.6,3062.4,18.95]
[1642718686244,1.853e-05,3062.6,3062.5,4.54255434]
[1642718686448,0.57797972,3062.7,3062.5,21.031]
[1642718686645,0.57684288,3062.6,3062.5,21.031]
[1642718686845,0.57684288,3062.6,3062.5,21.331]
[1642718687044,2.13972932,3062.6,3062.5,22.331]
[1642718687444,2.13972932,3062.6,3062.5,23.14723]
[1642718687643,2.13972932,3062.6,3062.5,22.331]
[1642718687893,0.57684288,3062.6,3062.5,22.331]
[1642718693645,1.63237,3064.3,3062.5,22.331]
[1642718693646,3.89539516,3064.5,3062.8,0.81618]
[1642718693848,1.63235,3064.8,3063.0,1.8]
[1642718693849,0.13819997,3064.8,3063.0,1.8]
[1642718694049,0.00397897,3063.4,3063.2,0.05140197]
[1642718694246,0.00397897,3063.4,3063.0,2.8]
[1642718694446,0.13819997,3064.8,3063.0,2.8]
[1642718694447,0.00341054,3063.3,3063.1,3.02924241]
[1642718694647,1.054e-05,3063.3,3063.2,2.8]
[1642718694849,0.13819997,3064.8,3063.2,2.8]
[1642718694850,2.33148512,3064.2,3063.2,26.43910907]
[1642718695051,2.33148512,3064.3,3063.3,19.95]
[1642718695298,0.00398951,3064.0,3063.4,23.05766918]
[1642718695489,0.00398951,3064.0,3063.5,0.8158789]
[1642718695690,0.00342109,3063.9,3063.6,22.50015557]
[1642718695891,0.00342109,3063.9,3063.6,19.931]
[1642718696091,0.00285266,3063.8,3063.7,1.0]
[1642718696289,0.00285266,3063.8,3063.7,1.81592]
[1642718696691,0.00285266,3063.8,3063.7,21.5818374]
[1642718696890,0.00285266,3063.8,3063.7,21.9628374]
[1642718697189,0.00285266,3063.8,3063.7,22.03562978]
[1642718699245,5.266e-05,3063.8,3063.7,22.03562978]
[1642718699646,2.13153778,3065.0,3064.3,0.81579]
[1642718699849,3.88195798,3065.8,3064.4,18.95]
[1642718700050,0.00625266,3064.9,3064.4,19.02279238]
[1642718700252,0.00625266,3064.9,3064.3,0.381]
[1642718700253,0.00625266,3064.9,3064.5,0.07279238]
[1642718700448,0.00568424,3064.8,3064.5,0.07279238]
[1642718700646,0.00568424,3064.8,3064.5,1.07279238]
[1642718700847,0.00511581,3064.7,3064.5,1.07279238]
[1642718701046,0.00511581,3064.7,3064.6,2.56575]
[1642718701257,3.11025037,3065.8,3064.6,2.56575]
[1642718701649,0.00795793,3065.2,3064.6,2.56575]
[1642718702053,0.00738951,3065.1,3064.6,2.56575]
[1642718702452,0.00682108,3065.0,3064.6,2.56575]
[1642718702653,0.00682108,3065.0,3064.6,2.86575]
[1642718702894,0.00625266,3064.9,3064.7,1.0]
[1642718703096,0.00625266,3064.9,3064.8,18.95]
[1642718703295,1.55558477,3065.5,3064.8,18.95]
[1642718703596,1.55558477,3065.6,3064.9,1.0]
[1642718703796,0.00909478,3065.4,3064.9,1.0]
[1642718703996,0.0096632,3065.5,3064.9,1.3]
[1642718704196,0.00852635,3065.3,3065.0,0.88841238]
[1642718704398,3.12242278,3066.3,3065.0,0.88841238]
[1642718704399,0.01023162,3065.6,3065.1,0.381]
[1642718704696,0.01217241,3066.3,3065.1,2.53934788]
[1642718704697,0.0096632,3065.5,3065.1,2.53934788]
[1642718704896,0.0096632,3065.5,3065.2,0.07279238]
[1642718705095,1.55558477,3066.1,3065.1,0.651]
[1642718705297,1.56922693,3066.2,3065.1,0.651]
[1642718705503,0.01250532,3066.0,3065.1,0.651]
[1642718705698,0.01307374,3066.1,3065.1,0.651]
[1642718705897,1.55558477,3066.2,3065.1,0.651]
[1642718705898,0.01193689,3065.9,3065.1,0.651]
[1642718706097,0.01250532,3066.0,3065.1,1.651]
[1642718706297,0.01136847,3065.8,3065.1,1.651]
[1642718706543,0.01193689,3065.9,3065.1,0.72379238]
[1642718706746,0.01080005,3065.7,3065.3,0.01732491]
[1642718706945,0.01217241,3066.3,3065.3,0.01732491]
[1642718706946,0.01136847,3065.8,3065.3,0.01732491]
[1642718707145,0.01217241,3066.3,3065.3,0.01732491]
[1642718707146,0.01023162,3065.6,3065.3,0.01732491]
[1642718707348,0.01080005,3065.7,3065.4,0.03897869]
[1642718707547,0.0096632,3065.5,3065.4,0.03897869]
[1642718707748,0.01023162,3065.6,3065.3,0.01732491]
[1642718708053,0.0096632,3065.5,3065.3,3.00878648]
[1642718708249,0.0096632,3065.5,3065.3,0.01732491]
[1642718708449,0.01364216,3066.2,3065.4,2.8]
[1642718708748,0.01307374,3066.1,3065.4,1.8]
[1642718708950,0.01307374,3066.1,3065.5,1.0]
[1642718709148,0.01217241,3066.3,3065.4,1.8]
[1642718709149,0.01250532,3066.0,3065.4,1.8]
[1642718709351,0.0218861,3065.8,3065.4,2.61549]
[1642718709548,0.04386555,3065.8,3065.5,1.0]
[1642718709750,0.01080005,3065.7,3065.5,1.0]
[1642718709950,0.01080005,3065.7,3065.4,2.8]
[1642718710151,0.01023162,3065.6,3065.5,2.8]
[1642718710399,0.01023162,3065.6,3065.5,1.8]
[1642718712197,0.00447628,3065.6,3065.5,1.8]
[1642718712998,0.00447628,3065.6,3065.5,5.0]
[1642718713901,1.00447628,3065.6,3065.5,6.0]
[1642718714344,1.00447628,3065.6,3065.5,6.3]
[1642718714643,1.00447628,3065.6,3065.5,4.3303]
[1642718714845,1.04834183,3065.6,3065.5,3.2]
[1642718715242,1.04834183,3065.6,3065.5,4.2]
[1642718715652,4.183e-05,3065.6,3065.5,7.64641521]
[1642718715854,4.183e-05,3065.6,3065.5,8.1495208]
[1642718716147,4.183e-05,3065.6,3065.5,4.40310559]
[1642718716747,4.183e-05,3065.6,3065.5,4.3303]
[1642718716948,4.183e-05,3065.6,3065.5,4.9303]
[1642718717993,4.183e-05,3065.6,3065.5,3.3303]
[1642718718597,4.183e-05,3065.6,3065.5,6.50609877]
[1642718718996,4.183e-05,3065.6,3065.5,25.52890436]
[1642718719501,4.183e-05,3065.6,3065.5,3.40310559]
[1642718719697,4.183e-05,3065.6,3065.5,6.47464279]
[1642718719900,0.15071375,3067.0,3065.5,6.34434279]
[1642718720101,0.15071375,3067.0,3065.6,0.1303]
[1642718720302,0.15071375,3067.0,3065.6,19.0803]
[1642718720303,0.00738951,3066.9,3065.6,19.0803]
[1642718720503,0.00738951,3066.9,3065.7,3.23568488]
[1642718720702,0.15071375,3067.0,3065.7,4.23568488]
[1642718720703,0.00682109,3066.8,3065.7,4.23568488]
[1642718720913,0.00682109,3066.8,3065.7,1.07280559]
[1642718721104,0.00625266,3066.7,3065.7,1.07280559]
[1642718721302,0.00625266,3066.7,3065.7,4.10191238]
[1642718721551,0.00568424,3066.6,3065.7,4.10191238]
[1642718721942,0.00511582,3066.5,3065.7,1.07280559]
[1642718722142,0.00511582,3066.5,3065.7,0.07280559]
[1642718722343,0.00454739,3066.4,3065.7,3.20661333]
[1642718722542,0.00454739,3066.4,3065.8,1.1303]
[1642718722747,0.82797378,3067.0,3065.8,1.1303]
[1642718722748,0.00397897,3066.3,3065.8,1.1303]
[1642718722946,0.00397897,3066.3,3065.8,0.1303]
[1642718723146,0.00341054,3066.2,3065.8,0.1303]
[1642718723556,0.00284212,3066.1,3065.5,3.2]
[1642718723949,0.0022737,3066.0,3065.5,3.2]
[1642718724355,0.00170527,3065.9,3065.5,3.2]
[1642718724751,0.00113685,3065.8,3065.5,3.2]
[1642718725151,0.01268449,3066.2,3065.5,3.2]
[1642718725602,0.00284212,3066.1,3065.5,3.2]
[1642718725799,0.81578,3065.8,3065.5,3.2]
[1642718726399,0.81578,3065.8,3065.5,2.21828273]
[1642718727101,1.11578,3065.8,3065.5,2.21828273]
[1642718727300,1.93046647,3065.8,3065.5,2.21828273]
[1642718727701,1.81261575,3065.6,3065.5,1.04427486]
[1642718728101,3.51261575,3065.6,3065.5,1.04427486]
[1642718728303,0.81618,3065.2,3064.2,0.1303]
[1642718728507,0.81619,3065.0,3064.2,0.1303]
[1642718728709,0.81619,3065.0,3064.3,0.0073895]
[1642718729154,0.76619,3065.0,3064.3,0.0073895]
[1642718729354,1.6324091,3064.8,3064.3,0.0073895]
[1642718729554,3.2648182,3064.9,3064.3,0.0073895]
[1642718729555,0.81625,3064.7,3064.3,0.0073895]
[1642718730157,0.81625,3064.7,3063.5,0.01193689]
[1642718730759,3.1742208,3064.6,3063.5,0.01193689]
[1642718730959,0.81629,3064.3,3063.5,0.14243689]
[1642718731363,0.81629,3064.3,3063.6,0.01136847]
[1642718731964,1.21012992,3064.2,3063.6,0.01136847]
[1642718732161,0.81638,3064.0,3063.6,0.01136847]
[1642718732561,0.81638,3064.0,3062.9,0.01534743]
[1642718732995,1.11638,3064.0,3063.6,3.2]
[1642718733197,0.5115,3063.9,3063.6,3.2]
[1642718733496,0.5115,3063.9,3063.7,4e-08]
[1642718733699,0.5115,3063.9,3063.6,1.78330004]
[1642718733700,0.163,3063.8,3063.6,1.78330004]
[1642718733902,4.82815,3063.7,3063.6,1.78330004]
[1642718734099,4.82815,3063.7,3062.8,7.39]
[1642718734298,0.81666,3063.5,3062.8,7.39]
[1642718734499,0.81666,3063.5,3062.9,0.00454739]
[1642718734500,0.381,3063.4,3062.9,0.00454739]
[1642718735300,0.00852932,3063.3,3062.9,0.00454739]
[1642718735499,0.8166728,3063.2,3062.9,0.00454739]
[1642718735704,0.8166728,3063.2,3061.9,0.01023162]
[1642718735901,0.81664,3062.9,3062.0,0.1305]
[1642718736300,0.81664,3062.9,3062.1,0.00909478]
[1642718736560,1.85,3062.8,3061.5,1.14969478]
[1642718736757,1.85397897,3062.8,3061.6,0.1306]
[1642718736960,0.00341054,3062.7,3061.6,0.13344211]
[1642718737157,0.82007054,3062.7,3061.6,0.13344211]
[1642718737358,0.00284212,3062.6,3061.6,0.13344211]
[1642718737756,0.0022737,3062.5,3061.6,0.13344211]
[1642718738156,0.00170527,3062.4,3061.6,0.13344211]
[1642718738556,0.00113685,3062.3,3061.6,0.13344211]
[1642718738959,0.00284212,3062.6,3061.6,0.00284211]
[1642718739363,0.0022737,3062.5,3061.6,0.00284211]
[1642718739566,0.59694492,3062.5,3061.6,0.00284211]
[1642718739762,0.59694492,3062.5,3061.2,2.77133899]
[1642718739961,0.59694492,3062.5,3061.3,0.1306]
[1642718740161,0.59694492,3062.5,3061.3,0.13742108]
[1642718740399,0.59694492,3062.5,3061.4,0.00625266]
[1642718741002,0.59694492,3062.5,3061.1,0.00795793]
[1642718741199,0.59694492,3062.5,3061.2,0.1305]
[1642718741600,0.59694492,3062.5,3061.3,0.00682108]
[1642718741806,0.59694492,3062.5,3061.4,0.1305]
[1642718742001,0.1305,3063.1,3061.4,0.1305]
[1642718742002,0.81664,3062.8,3061.4,0.1305]
[1642718742201,0.81664,3062.8,3061.5,0.00568424]
[1642718742400,0.00170527,3062.8,3061.5,0.00568424]
[1642718743500,0.00170527,3062.8,3061.6,7.39]
[1642718743901,0.00170527,3062.8,3061.7,1.00454739]
[1642718744154,0.00170527,3062.8,3061.7,0.00454739]
[1642718744361,0.00170527,3062.8,3061.8,0.00397897]
[1642718744555,0.00170527,3062.8,3061.6,0.00511581]
[1642718744753,0.00170527,3062.8,3061.7,0.00454739]
[1642718744954,0.00170527,3062.8,3061.8,0.1305]
[1642718745153,0.00170527,3062.8,3061.7,0.1305]
[1642718745354,0.00170527,3062.8,3061.9,0.00341054]
[1642718745555,0.00170527,3062.8,3061.8,0.00397897]
[1642718745954,0.00170527,3062.8,3061.7,0.00454739]
[1642718746354,0.81834527,3062.8,3061.7,0.00454739]
[1642718746553,1.11834527,3062.8,3061.7,0.00454739]
[1642718747152,1.11834527,3062.8,3061.3,0.00682108]
[1642718747553,0.81668,3062.6,3061.3,0.00682108]
[1642718748196,0.81668,3062.6,3061.2,0.00738951]
[1642718749001,0.81668,3062.6,3061.2,1.00738951]
[1642718749400,1.85,3062.5,3061.2,0.40682108]
[1642718749607,1.85682108,3062.5,3061.1,20.17606883]
[1642718749802,0.00625265,3062.4,3061.1,20.17606883]
[1642718750302,0.00568423,3062.3,3061.1,20.24887442]
[1642718750503,0.00568423,3062.3,3061.1,20.17606883]
[1642718750727,0.00511581,3062.2,3061.6,0.03916465]
[1642718750912,0.00511581,3062.2,3061.3,1.93325]
[1642718751108,1.85,3062.5,3061.3,1.93325]
[1642718751109,0.00454738,3062.1,3061.3,1.93325]
[1642718751550,0.00397896,3062.0,3061.3,1.63325]
[1642718751951,0.00341054,3061.9,3061.3,1.63325]
[1642718752351,0.00284211,3061.8,3061.3,1.63325]
[1642718752754,0.81674,3062.4,3061.3,1.63325]
[1642718752755,0.00227369,3061.7,3061.3,1.63325]
[1642718752953,0.00227369,3061.7,3061.4,0.3]
[1642718753155,0.81674,3062.4,3061.4,0.3]
[1642718753156,0.00170527,3061.6,3061.4,0.3]
[1642718753555,0.00113684,3061.5,3061.3,1.63325]
[1642718753760,0.00113684,3061.5,3061.2,0.3]
[1642718754059,0.38668423,3062.3,3060.9,0.1305]
[1642718754256,1.52918423,3062.3,3060.6,1.1473]
[1642718754457,0.00511581,3062.2,3061.0,0.00170528]
[1642718754666,0.00511581,3062.2,3060.2,2.54120528]
[1642718754667,2.394,3062.1,3060.2,2.54120528]
[1642718754856,0.1305,3062.0,3060.1,17.0761]
[1642718755059,0.381,3061.9,3060.3,0.00397896]
[1642718755323,0.381,3061.9,3060.3,1.63776896]
[1642718755324,0.38611582,3061.9,3060.3,1.63776896]
[1642718755514,0.00454739,3061.8,3060.4,0.1305]
[1642718755714,0.00454739,3061.8,3060.4,0.00341054]
[1642718755912,0.00397897,3061.7,3060.5,0.00284211]
[1642718756119,0.82089897,3061.7,3060.4,0.00341054]
[1642718756312,0.82089897,3061.7,3060.5,0.81693]
[1642718756313,0.00341055,3061.6,3060.5,0.81693]
[1642718756516,0.01210324,3061.1,3058.7,2.45680257]
[1642718756717,0.01210324,3061.1,3057.9,4.64188322]
[1642718756718,0.02653881,3058.8,3056.9,1.63252082]
[1642718756919,0.02653881,3058.8,3056.6,1.66110298]
[1642718756920,4.763,3057.1,3057.0,1.43008392]
[1642718757117,4.763,3057.1,3055.7,4.12498829]
[1642718757118,0.04266833,3057.0,3054.9,1.63280187]
[1642718757325,0.1308,3056.9,3055.0,2.21874456]
[1642718757517,0.1308,3056.9,3054.1,0.007]
[1642718757518,0.1308,3056.9,3055.3,0.02898959]
[1642718757519,0.81887,3056.4,3055.3,0.02898959]
[1642718757719,0.81887,3056.4,3054.1,2.77401448]
[1642718757720,1.04956,3055.8,3054.1,2.77401448]
[1642718757920,0.4213,3055.8,3054.3,0.01258467]
[1642718758120,0.97207369,3055.7,3054.4,2.31004957]
[1642718758322,0.97207369,3055.7,3055.1,0.01235611]
[1642718758323,7.369e-05,3055.7,3055.1,0.01235611]
[1642718758516,0.00170527,3055.6,3055.1,0.01235611]
[1642718758722,0.00170527,3055.6,3055.2,0.00276843]
[1642718758915,0.36175877,3055.6,3055.2,0.00276843]
[1642718759758,0.381,3055.5,3055.2,0.00276843]
[1642718759961,41.99723157,3055.2,3054.0,0.01229436]
[1642718760158,41.99723157,3055.2,3053.9,0.02538562]
[1642718760159,0.01526195,3055.1,3053.9,0.02538562]
[1642718760360,1.5225,3055.5,3054.2,0.00568423]
[1642718760361,0.381,3055.0,3054.2,0.00568423]
[1642718760564,0.381,3054.9,3054.2,0.00568423]
[1642718761658,1.5104,3054.9,3054.3,0.02175667]
[1642718761863,2.0,3054.8,3053.9,0.00982652]
[1642718762059,0.381,3054.7,3053.9,0.00982652]
[1642718762261,0.38384212,3054.7,3054.0,0.00113685]
[1642718762465,0.00227369,3054.6,3054.0,0.00113685]
[1642718762662,0.381,3054.5,3054.0,0.00113685]
[1642718762914,0.38270527,3054.5,3054.0,0.00113685]
[1642718763111,0.00113685,3054.4,3054.0,0.00113685]
[1642718763313,0.381,3054.3,3054.0,0.00113685]
[1642718763714,41.99886315,3054.0,3053.9,0.00982652]
[1642718763914,1.20009,3054.0,3053.9,0.00982652]
[1642718764313,2.29059,3054.0,3053.7,1.90509344]
[1642718764714,1.4715,3054.0,3053.8,0.00113684]
[1642718765025,42.0,3053.8,3053.1,0.14306989]
[1642718765215,0.381,3053.8,3053.1,0.04306989]
[1642718765418,0.381,3053.8,3053.2,0.00341055]
[1642718766417,1.2002433,3053.8,3053.2,0.00341055]
[1642718766654,0.381,3053.8,3053.2,0.00341055]
[1642718767054,1.65,3053.6,3052.4,0.07421377]
[1642718767255,3.881,3053.5,3052.4,0.07421377]
[1642718767458,3.50170527,3053.5,3052.5,0.00397896]
[1642718767661,0.00113685,3053.4,3052.5,0.07679964]
[1642718767855,0.01230244,3054.3,3053.4,0.00603843]
[1642718768159,0.00511581,3054.3,3053.4,0.00603843]
[1642718770397,1.581e-05,3054.3,3053.4,0.38703843]
[1642718770601,1.581e-05,3054.3,3053.6,0.81857]
[1642718770800,1.581e-05,3054.3,3053.7,0.681]
[1642718771006,1.581e-05,3054.3,3053.8,0.81839]
[1642718771200,1.581e-05,3054.3,3053.9,0.381]
[1642718771400,1.581e-05,3054.3,3053.9,0.38325788]
[1642718771599,1.581e-05,3054.3,3053.9,0.18268946]
[1642718771801,1.581e-05,3054.3,3054.0,0.0726626]
[1642718772003,0.01230425,3055.4,3054.3,0.00076315]
[1642718772203,0.381,3057.2,3054.4,0.381]
[1642718772204,2.89781448,3057.0,3054.4,0.381]
[1642718772405,0.00625266,3055.3,3054.4,0.4536626]
[1642718772602,0.00625266,3055.3,3054.4,0.381]
[1642718772807,0.01263213,3056.3,3054.4,0.381]
[1642718772808,0.00568423,3055.2,3054.6,0.11470066]
[1642718773006,0.9812689,3057.4,3054.5,0.0726626]
[1642718773007,0.1308,3057.3,3054.8,0.11992593]
[1642718773206,0.1308,3057.3,3055.0,0.06975529]
[1642718773409,0.00568424,3056.2,3055.4,0.0680917]
[1642718773607,0.00568424,3056.2,3055.6,0.05226913]
[1642718773804,0.00568424,3056.2,3055.5,0.381]
[1642718773805,0.00511581,3056.1,3055.7,0.381]
[1642718774044,0.00511581,3056.1,3055.7,0.681]
[1642718774254,2.73508304,3057.8,3055.8,2.05]
[1642718774255,0.01201317,3056.8,3055.8,2.05]
[1642718774450,0.01203819,3057.2,3055.8,0.00170527]
[1642718774652,0.1308,3057.1,3055.9,0.00113684]
[1642718774848,0.01203819,3057.2,3055.4,0.00397896]
[1642718775049,0.00511582,3057.0,3055.4,0.00397896]
[1642718775248,0.13648424,3057.1,3055.4,0.00397896]
[1642718775453,0.01203819,3057.2,3055.4,0.00397896]
[1642718775454,0.00454739,3056.9,3055.4,0.00397896]
[1642718775650,0.00511582,3057.0,3055.4,0.00397896]
[1642718775849,0.00397897,3056.8,3055.4,0.00397896]
[1642718776052,2.73508304,3057.9,3055.5,2.1]
[1642718776053,2.82043043,3057.9,3055.5,2.1]
[1642718776255,0.2862,3058.9,3056.0,0.81792]
[1642718776256,2.86588304,3058.2,3056.0,0.81792]
[1642718776456,0.00397897,3057.6,3056.0,0.81792]
[1642718776653,0.00397897,3057.6,3056.1,0.00454739]
[1642718776854,0.1308,3058.6,3056.1,0.00454739]
[1642718776855,0.00341054,3057.5,3056.1,0.00454739]
[1642718777053,0.00341054,3057.5,3056.1,19.33554739]
[1642718777255,0.1308,3058.6,3056.2,0.0632337]
[1642718777256,0.00284212,3057.4,3056.2,0.0632337]
[1642718777456,0.124,3059.5,3056.8,0.01294607]
[1642718777663,0.124,3059.5,3056.3,3.45]
[1642718777664,0.01205736,3058.6,3056.9,0.16359]
[1642718777931,5.43672997,3059.3,3056.9,0.00284212]
[1642718777932,0.01249643,3057.9,3056.9,0.00284212]
[1642718778132,0.01249643,3057.9,3055.5,0.01279013]
[1642718778133,0.01249643,3057.9,3057.0,0.00227369]
[1642718778325,0.00227369,3057.8,3056.6,0.00454739]
[1642718778528,0.00227369,3057.8,3056.3,0.16359]
[1642718778728,0.381,3058.1,3056.4,0.00568423]
[1642718778729,0.00170527,3057.7,3056.4,0.00568423]
[1642718778926,0.00170527,3057.7,3056.5,0.16359]
[1642718779128,0.00113685,3057.6,3056.5,0.16359]
[1642718779328,0.00113685,3057.6,3056.6,0.00454739]
[1642718779544,0.1308,3058.4,3056.6,0.00454739]
[1642718779545,0.00341054,3058.0,3056.6,0.00454739]
[1642718779934,0.0149823,3057.9,3056.6,0.00454739]
[1642718780130,0.0149823,3057.9,3056.5,0.16870581]
[1642718780329,0.00227369,3057.8,3056.5,0.16359]
[1642718780532,0.00227369,3057.8,3056.6,0.00454739]
[1642718780740,0.13250527,3057.7,3056.6,0.00454739]
[1642718780933,0.13250527,3057.7,3055.8,0.00909478]
[1642718780934,0.8184227,3057.1,3055.8,0.00909478]
[1642718781131,1.63683,3056.9,3055.6,0.01023162]
[1642718781330,1.63683,3056.9,3055.2,0.01250532]
[1642718781557,3.45,3056.8,3055.1,3.47810532]
[1642718781749,2.1,3056.8,3055.1,3.47810532]
[1642718781949,0.82694636,3056.7,3055.2,0.16359]
[1642718782153,1.64535796,3056.7,3055.2,0.16359]
[1642718782354,0.00795793,3056.6,3055.2,0.16359]
[1642718782554,0.00795793,3056.6,3055.2,0.29439]
[1642718782755,0.00738951,3056.5,3055.2,0.19439]
[1642718782955,0.00738951,3056.5,3055.2,0.06359]
[1642718783155,0.95646997,3057.0,3055.2,0.06359]
[1642718783156,0.00682109,3056.4,3055.2,0.06359]
[1642718783362,0.00682109,3056.4,3055.2,1.06359]
[1642718783557,0.95646997,3057.0,3055.2,1.36359]
[1642718783558,0.00625266,3056.3,3055.2,1.36359]